bitfinex/quotes_ETHUSD_20250210
["timestamp","ask_amount","ask_price","bid_price","bid_amount"]
[1739148661611,0.06098588,2649.5,2649.3,3.77448]
[1739148661813,3.77393,2649.8,2649.3,7.54897]
[1739148662113,0.06098588,2649.4,2649.3,7.54897]
[1739148662338,3.77387,2649.8,2649.3,3.77448]
[1739148662538,0.06098588,2649.7,2649.3,3.77448]
[1739148662732,3.77387,2649.8,2649.3,7.9628146]
[1739148662937,0.06098588,2649.7,2649.3,4.1883246]
[1739148663158,3.77403,2649.7,2649.3,4.1883246]
[1739148663446,0.06098588,2649.6,2649.3,4.1883246]
[1739148663632,0.06098588,2649.6,2649.4,3.77438]
[1739148663835,0.8229,2650.0,2649.4,0.457135]
[1739148664039,3.77346,2650.1,2649.7,4.57048]
[1739148664544,3.0,2650.2,2649.7,4.5704]
[1739148664744,0.8229,2650.3,2649.9,3.77372]
[1739148664945,4.59607,2650.3,2649.9,3.77372]
[1739148665147,3.77287,2650.5,2649.8,3.77386]
[1739148665347,6.77305,2650.4,2649.9,3.77362]
[1739148665549,3.0,2650.4,2650.0,3.77354]
[1739148665852,6.77302,2650.4,2650.0,9.02354]
[1739148666219,3.77316,2650.3,2650.0,5.25]
[1739148666420,6.77302,2650.4,2650.0,5.25]
[1739148666920,6.77302,2650.4,2650.0,9.02357]
[1739148667120,0.8229,2650.6,2650.2,3.77325]
[1739148667449,3.0,2650.6,2650.2,0.786]
[1739148667826,3.0,2650.6,2650.2,4.55929]
[1739148668031,3.77268,2650.7,2650.2,4.55929]
[1739148668032,8.34593,2650.8,2650.3,3.77313]
[1739148668238,3.0,2650.7,2650.3,3.77313]
[1739148668548,6.77261,2650.7,2650.3,3.77313]
[1739148669030,4.57337,2650.8,2650.3,3.77313]
[1739148669031,3.77243,2650.9,2650.3,9.02313]
[1739148669237,3.77253,2650.8,2650.3,9.02306]
[1739148669553,3.77253,2650.8,2650.3,9.02305]
[1739148670049,0.06198194,2650.7,2650.3,9.02305]
[1739148670256,3.83460194,2650.7,2650.3,5.25]
[1739148670849,3.77262,2650.7,2650.3,5.25]
[1739148671149,0.06220241,2650.6,2650.3,5.25]
[1739148671449,0.06220241,2650.6,2650.3,9.02314]
[1739148671851,4.57343,2650.8,2650.3,9.02314]
[1739148672033,0.0621953,2650.5,2650.3,9.02314]
[1739148672238,0.8009,2650.8,2650.3,9.02314]
[1739148672431,0.8009,2650.8,2650.4,3.7729]
[1739148672635,4.57334,2650.8,2650.4,3.7729]
[1739148672832,4.57334,2650.8,2650.3,5.25]
[1739148672833,3.77244,2650.8,2650.3,5.25]
[1739148673037,7.54498,2650.8,2650.3,9.02313]
[1739148673620,3.77244,2650.8,2650.3,9.02305]
[1739148674764,3.77265,2650.7,2650.3,5.25]
[1739148674930,3.77281,2650.6,2650.3,5.25]
[1739148675332,3.81997084,2650.6,2650.3,5.25]
[1739148675547,3.8009,2650.9,2650.3,5.25]
[1739148675751,7.57328,2650.9,2650.3,5.25]
[1739148675964,3.77265,2650.7,2650.3,5.25]
[1739148676458,7.54532,2650.7,2650.3,5.25]
[1739148676661,3.77265,2650.7,2650.3,5.25]
[1739148677427,3.77277,2650.6,2650.3,5.25]
[1739148677823,3.77301,2650.4,2650.3,5.25]
[1739148678041,4.57391,2650.4,2650.3,5.25]
[1739148679953,3.77387,2649.8,2649.5,0.786]
[1739148680153,3.77399,2649.8,2649.3,5.25]
[1739148680352,3.77399,2649.8,2649.3,9.02457]
[1739148680531,3.77401,2649.7,2649.3,3.77457]
[1739148680730,0.8009,2650.0,2649.2,9.646]
[1739148680731,3.8009,2650.0,2649.2,9.646]
[1739148680941,3.84807807,2650.0,2649.3,0.55]
[1739148681141,3.8009,2650.0,2649.6,3.77408]
[1739148682062,3.0,2650.0,2649.6,4.56007]
[1739148682466,3.77383,2649.9,2649.6,0.786]
[1739148682831,3.82076274,2650.0,2649.6,0.786]
[1739148683336,0.04717274,2650.0,2649.6,0.786]
[1739148683636,3.77366,2650.0,2649.6,0.786]
[1739148683833,3.77353,2650.1,2649.6,4.56008]
[1739148684334,3.0,2650.0,2649.6,4.56008]
[1739148684567,3.0,2650.0,2649.7,3.77391]
[1739148684775,6.77344,2650.1,2649.7,3.77391]
[1739148684977,0.06166891,2650.0,2649.6,4.56015]
[1739148685239,3.83536891,2650.0,2649.6,0.786]
[1739148685457,0.06166891,2650.0,2649.6,4.56013]
[1739148686134,0.06166891,2650.0,2649.7,3.77399]
[1739148686335,0.06166891,2650.0,2649.6,9.81008]
[1739148686866,0.06166891,2650.0,2649.7,3.774]
[1739148689090,0.06166891,2650.0,2649.8,3.77386]
[1739148689291,0.06166891,2650.0,2649.9,5.10972]
[1739148689502,3.77279,2650.6,2650.1,3.77344]
[1739148689692,3.77259,2650.7,2650.2,5.25]
[1739148689864,0.05932649,2650.5,2650.2,5.25]
[1739148690063,3.77276,2650.6,2650.2,5.25]
[1739148690382,3.77259,2650.7,2650.2,9.02328]
[1739148690579,0.05932649,2650.6,2650.2,9.02328]
[1739148690889,3.83209649,2650.6,2650.2,5.25]
[1739148691469,0.05932649,2650.6,2650.4,3.77296]
[1739148691801,0.05932649,2650.6,2650.3,4.55915]
[1739148692197,0.05932649,2650.6,2650.3,0.786]
[1739148692502,3.83207649,2650.6,2650.3,0.786]
[1739148692897,3.83207649,2650.6,2650.2,5.25]
[1739148693099,3.77301,2650.4,2650.2,5.25]
[1739148693404,7.63379664,2650.3,2650.2,5.25]
[1739148694986,3.0,2650.2,2649.7,14.11]
[1739148695332,3.88021769,2650.1,2649.7,14.11]
[1739148695984,3.83304727,2650.1,2649.7,17.88396]
[1739148696314,3.83304727,2650.1,2649.7,14.11]
[1739148696968,3.83304727,2650.1,2649.7,17.88399]
[1739148697400,3.83304727,2650.1,2649.7,14.11]
[1739148697705,0.05954727,2650.1,2649.7,14.11]
[1739148698004,3.77358,2650.0,2649.7,14.11]
[1739148698203,3.77381,2649.9,2649.7,5.25]
[1739148698404,3.83314362,2649.9,2649.7,5.25]
[1739148698703,3.77386,2649.8,2649.7,5.25]
[1739148699217,3.83319362,2649.8,2649.7,5.25]
[1739148699423,0.05933362,2649.8,2649.7,5.25]
[1739148701422,3.83319362,2649.8,2649.7,5.25]
[1739148702726,0.05933362,2649.8,2649.7,5.25]
[1739148704729,3.0,2650.0,2649.7,5.25]
[1739148704885,0.05907719,2649.9,2649.7,5.25]
[1739148705488,0.05907719,2649.9,2649.7,9.02401]
[1739148705683,0.05907719,2649.9,2649.7,5.25]
[1739148706099,3.83280719,2649.9,2649.7,5.25]
[1739148706305,4.89343391,2649.9,2649.7,5.25]
[1739148706500,0.8304,2649.8,2649.7,5.25]
[1739148706732,0.88953418,2649.8,2649.7,5.25]
[1739148706885,0.05913418,2649.8,2649.7,5.25]
[1739148707079,7.604,2650.0,2649.7,5.25]
[1739148707319,0.05913418,2649.9,2649.7,5.25]
[1739148708133,3.83296418,2649.9,2649.7,5.25]
[1739148708513,0.05913418,2649.9,2649.7,5.25]
[1739148709981,6.77346,2650.1,2649.7,5.25]
[1739148710289,0.05913418,2650.0,2649.7,9.85489]
[1739148710490,0.05913418,2650.0,2649.7,6.0809]
[1739148711332,0.05913418,2650.0,2649.9,3.77372]
[1739148711513,3.77323,2650.3,2649.9,3.77372]
[1739148711714,3.77323,2650.3,2649.9,3.7737]
[1739148712028,0.0591698,2650.2,2649.8,3.7738]
[1739148712231,3.0,2650.1,2649.8,3.7738]
[1739148712634,0.0591698,2650.0,2649.8,3.7738]
[1739148713116,0.0591698,2650.0,2649.7,6.0809]
[1739148713541,0.0591698,2650.0,2649.7,9.85483]
[1739148713829,3.0,2650.2,2649.7,5.25]
[1739148713999,3.77386,2649.8,2649.7,5.25]
[1739148714486,3.83314375,2649.8,2649.7,5.25]
[1739148714692,4.63054375,2649.8,2649.7,5.25]
[1739148714886,4.63054375,2649.8,2649.3,8.86]
[1739148714887,3.77438,2649.5,2649.3,5.25]
[1739148715425,0.0590629,2649.4,2649.3,5.25]
[1739148717492,8.01423719,2649.4,2649.3,5.25]
[1739148719195,7.6308929,2649.4,2649.3,5.25]
[1739148719719,3.77515,2648.9,2648.4,9.02578]
[1739148719918,3.77552,2648.7,2648.5,0.7829]
[1739148720225,3.77511,2649.0,2648.5,0.7829]
[1739148720415,3.77511,2649.0,2648.5,4.55861]
[1739148720615,0.05867094,2648.9,2648.5,8.33425]
[1739148720814,0.05867094,2648.9,2648.5,0.7829]
[1739148721013,3.77551,2648.7,2648.4,5.25]
[1739148721213,0.7974,2648.7,2648.3,0.7829]
[1739148721525,3.77582,2648.5,2648.2,14.11]
[1739148721740,3.83448688,2648.4,2648.2,5.25]
[1739148722024,3.776,2648.3,2648.2,5.25]
[1739148722323,3.776,2648.3,2648.0,5.25]
[1739148722528,0.05847133,2648.3,2648.0,5.25]
[1739148722899,0.05847133,2648.3,2648.1,3.77617]
[1739148723106,3.0,2648.4,2648.0,9.0264]
[1739148723425,0.05825029,2648.3,2648.0,9.0264]
[1739148724031,6.77575,2648.5,2648.0,12.80276]
[1739148724200,0.05824316,2648.2,2648.0,9.02636]
[1739148724401,6.77575,2648.5,2648.0,9.02636]
[1739148724598,0.05824316,2648.4,2648.0,9.02636]
[1739148725498,3.83420316,2648.4,2648.0,5.25]
[1739148725698,1.11923848,2648.4,2648.0,5.25]
[1739148725901,0.05824316,2648.4,2648.1,3.77628]
[1739148727222,0.05824316,2648.4,2648.0,5.25]
[1739148727399,0.05824316,2648.4,2648.0,9.02636]
[1739148727606,3.83412316,2648.4,2648.0,5.25]
[1739148728332,0.05824316,2648.4,2648.0,5.25]
[1739148728524,0.05824316,2648.4,2648.1,3.77622]
[1739148728721,0.7974,2648.7,2648.0,5.25]
[1739148728913,0.7832,2649.0,2648.7,3.77536]
[1739148729231,0.05514931,2648.9,2648.6,0.7895]
[1739148729538,3.77516,2648.9,2648.4,9.81529]
[1739148729699,3.83045931,2648.8,2648.4,6.0395]
[1739148729902,3.83045931,2648.8,2648.4,9.81534]
[1739148730103,7.60585931,2648.8,2648.4,6.0395]
[1739148730302,3.83045931,2648.8,2648.4,5.25]
[1739148730602,0.05514931,2648.8,2648.6,3.77553]
[1739148730830,0.7832,2648.8,2648.4,5.25]
[1739148731034,0.05530634,2648.7,2648.4,5.25]
[1739148731796,0.05530634,2648.7,2648.6,3.77557]
[1739148732036,3.77501,2649.0,2648.6,3.77557]
[1739148732220,0.05522069,2648.7,2648.6,3.77557]
[1739148732432,3.77501,2649.0,2648.6,3.77557]
[1739148732627,0.05534917,2648.7,2648.6,3.77557]
[1739148732937,0.05534917,2648.7,2648.6,4.56507]
[1739148733306,8.33279,2649.2,2648.7,3.77542]
[1739148733505,4.55797,2649.2,2648.7,7.55077]
[1739148733707,8.33283,2649.2,2648.7,3.77535]
[1739148733906,4.55797,2649.2,2648.7,3.77535]
[1739148734502,3.77453,2649.4,2648.9,3.77503]
[1739148734710,3.77451,2649.4,2648.9,3.77503]
[1739148735710,3.77451,2649.4,2649.0,3.77494]
[1739148736010,2.56950234,2649.7,2648.8,3.77529]
[1739148736011,3.77401,2649.8,2648.9,0.7895]
[1739148736211,3.77402,2649.7,2649.2,3.77465]
[1739148736422,3.0,2649.6,2649.2,3.77465]
[1739148737445,0.7832,2649.8,2649.0,0.55]
[1739148737646,0.7832,2649.8,2649.4,0.7895]
[1739148737847,0.7832,2649.8,2649.2,3.77469]
[1739148737848,3.77411,2649.7,2649.2,4.56419]
[1739148739245,7.54825,2649.7,2649.2,4.56419]
[1739148739434,3.77411,2649.7,2649.2,4.56419]
[1739148739743,3.7832,2649.8,2649.3,4.230859]
[1739148739952,3.7832,2649.8,2649.4,3.77443]
[1739148740248,3.77366,2650.0,2649.5,3.77429]
[1739148740547,3.77366,2650.0,2649.5,9.0242]
[1739148740712,3.77366,2650.0,2649.5,9.02419]
[1739148740907,0.7832,2650.1,2649.7,3.77393]
[1739148741113,0.7832,2650.3,2649.9,3.7736]
[1739148741347,3.77311,2650.4,2649.9,3.7736]
[1739148741526,3.0,2650.3,2649.9,3.7736]
[1739148742141,4.55602,2650.6,2650.2,0.7895]
[1739148742340,3.77282,2650.6,2650.2,0.7895]
[1739148742942,3.0,2650.5,2650.2,0.7895]
[1739148743314,6.77295,2650.5,2650.2,0.7895]
[1739148745042,0.05667637,2650.4,2650.2,0.7895]
[1739148745831,3.77316,2650.3,2650.0,0.7895]
[1739148746027,3.77316,2650.3,2649.9,5.25]
[1739148746228,6.77292,2650.5,2649.9,5.25]
[1739148746433,0.05667637,2650.2,2649.9,5.25]
[1739148746628,3.77321,2650.3,2649.9,5.25]
[1739148746955,3.77315,2650.4,2649.9,5.25]
[1739148746956,3.77358,2650.0,2649.9,5.25]
[1739148747143,3.83025637,2650.0,2649.6,0.7895]
[1739148747460,0.05667637,2650.0,2649.6,4.56351]
[1739148747644,0.05667637,2650.0,2649.7,3.77393]
[1739148747841,3.7733,2650.2,2649.7,3.77393]
[1739148748046,0.05713277,2649.9,2649.7,3.77393]
[1739148748247,3.0,2650.3,2649.9,3.77364]
[1739148748550,3.0,2650.3,2649.8,7.54765]
[1739148748854,6.77321,2650.3,2649.8,7.54758]
[1739148749019,6.77321,2650.3,2649.8,7.54759]
[1739148749432,3.77367,2650.0,2649.6,0.7895]
[1739148749636,4.55707,2649.8,2649.7,5.25]
[1739148749832,3.77426,2649.6,2649.1,0.7895]
[1739148750032,3.77458,2649.4,2648.9,5.25]
[1739148750231,6.77421,2649.6,2649.0,3.77499]
[1739148750446,3.0,2649.4,2649.0,3.77499]
[1739148750723,3.77446,2649.4,2648.9,5.25]
[1739148750945,3.77472,2649.2,2648.9,5.25]
[1739148751122,3.77459,2649.3,2648.9,5.25]
[1739148751754,3.77458,2649.3,2648.9,5.25]
[1739148752262,3.77458,2649.3,2648.9,9.02514]
[1739148752616,3.77476,2649.2,2648.9,5.25]
[1739148752823,3.775,2649.0,2648.9,5.25]
[1739148754144,3.77488,2649.1,2648.9,5.25]
[1739148754535,3.77466,2649.3,2648.9,5.25]
[1739148754735,3.77466,2649.3,2648.9,6.0395]
[1739148755535,7.54931,2649.3,2648.9,6.0395]
[1739148755738,3.77465,2649.3,2648.9,6.0395]
[1739148756340,7.54936,2649.3,2648.9,6.0395]
[1739148756558,3.77465,2649.3,2648.9,6.0395]
[1739148756766,3.77483,2649.2,2648.9,5.25]
[1739148758467,3.77494,2649.1,2648.9,5.25]
[1739148758830,6.7747,2649.3,2648.9,5.25]
[1739148759032,3.77482,2649.2,2648.9,5.25]
[1739148759236,3.77493,2649.1,2648.9,5.25]
[1739148759666,3.77482,2649.2,2648.9,5.25]
[1739148759972,3.83107126,2649.1,2648.9,5.25]
[1739148760811,0.05619126,2649.1,2648.9,5.25]
[1739148761068,3.83108126,2649.1,2648.9,5.25]
[1739148761361,0.05619126,2649.1,2648.9,5.25]
[1739148761766,0.05619126,2649.1,2649.0,3.775]
[1739148761979,3.7743,2649.5,2649.0,4.5674]
[1739148762292,0.05613418,2649.4,2649.1,3.77484]
[1739148762934,0.05613418,2649.4,2649.0,4.56733]
[1739148763367,0.05613418,2649.4,2649.1,5.25]
[1739148763743,0.05613418,2649.4,2649.1,9.02479]
[1739148763932,6.77415,2649.6,2649.1,5.25]
[1739148764135,3.83075674,2649.5,2649.1,5.25]
[1739148764686,3.77445,2649.4,2649.1,5.25]
[1739148764895,7.54903,2649.4,2649.1,5.25]
[1739148765055,3.77461,2649.3,2649.1,5.25]
[1739148765255,3.83098674,2649.3,2649.1,5.25]
[1739148765873,0.05637674,2649.3,2649.1,5.25]
[1739148766071,3.83097674,2649.3,2649.1,5.25]
[1739148766586,0.05637674,2649.3,2649.1,5.25]
[1739148767882,3.77435,2649.5,2649.1,9.02485]
[1739148768082,0.05637674,2649.2,2649.1,9.02486]
[1739148768297,6.77423,2649.6,2649.1,9.02486]
[1739148768478,0.0563054,2649.2,2649.1,9.02486]
[1739148768688,3.77435,2649.5,2649.1,9.02486]
[1739148768890,3.77435,2649.5,2649.1,5.25]
[1739148768891,3.77429,2649.5,2649.1,5.25]
[1739148769067,3.83078253,2649.4,2649.1,5.25]
[1739148770804,0.05631253,2649.4,2649.1,5.25]
[1739148770989,0.05631253,2649.4,2649.1,9.02483]
[1739148771189,3.7743,2649.5,2649.1,9.02483]
[1739148771355,0.05631253,2649.4,2649.1,5.25]
[1739148771956,3.83083253,2649.4,2649.1,5.25]
[1739148773007,0.05631253,2649.4,2649.1,5.25]
[1739148773171,4.54935,2650.1,2649.4,0.787]
[1739148773375,3.83010954,2650.0,2649.4,0.787]
[1739148773690,3.0,2649.9,2649.5,3.77419]
[1739148773991,0.056605,2649.8,2649.4,4.56143]
[1739148774198,3.830475,2649.8,2649.4,0.787]
[1739148775575,3.830475,2649.8,2649.4,4.56143]
[1739148775970,3.830475,2649.8,2649.4,0.787]
[1739148776908,3.830475,2649.8,2649.4,4.56143]
[1739148777193,0.056605,2649.8,2649.2,5.25]
[1739148777394,3.77415,2649.6,2649.2,5.25]
[1739148777574,0.05696879,2649.5,2649.2,5.25]
[1739148778702,3.77452,2649.4,2649.2,5.25]
[1739148779108,0.05687607,2649.3,2649.2,5.25]
[1739148781368,3.77402,2649.7,2649.2,9.0246]
[1739148781569,0.05674056,2649.6,2649.2,9.0246]
[1739148781801,3.77379,2649.9,2649.4,0.787]
[1739148782104,0.05674056,2649.8,2649.5,3.77429]
[1739148782471,0.05674056,2649.8,2649.5,3.77421]
[1739148782666,0.05674056,2649.8,2649.6,0.456121]
[1739148782879,3.77361,2650.0,2649.6,4.230201]
[1739148783201,3.77382,2649.9,2649.5,5.25]
[1739148783392,0.05674056,2649.8,2649.5,5.25]
[1739148783571,0.05674056,2649.8,2649.5,12.79841]
[1739148783774,3.77363,2650.0,2649.5,9.0242]
[1739148783966,3.83047056,2649.9,2649.5,9.0242]
[1739148784797,0.05674056,2649.9,2649.6,3.7741]
[1739148785000,3.77358,2650.1,2649.6,3.77415]
[1739148785169,0.05674056,2650.0,2649.6,3.77415]
[1739148785606,3.83038056,2650.0,2649.5,9.0242]
[1739148785901,3.83038056,2650.0,2649.5,12.79842]
[1739148786111,3.83038056,2650.0,2649.5,9.0242]
[1739148786280,3.83038056,2650.0,2649.5,12.79841]
[1739148786484,3.83038056,2650.0,2649.6,3.77414]
[1739148787293,3.83038056,2650.0,2649.7,5.25]
[1739148787899,3.77373,2649.9,2649.7,5.25]
[1739148788101,3.77386,2649.8,2649.7,5.25]
[1739148788320,4.54966,2649.8,2649.7,5.25]
[1739148788468,7.60640056,2649.8,2649.7,5.25]
[1739148789106,3.77472,2649.2,2649.1,5.25]
[1739148789311,3.77472,2649.2,2648.7,0.787]
[1739148789611,3.77472,2649.2,2648.8,5.25]
[1739148789612,3.83168165,2649.2,2648.8,5.25]
[1739148789802,3.77487,2649.1,2648.8,5.25]
[1739148790304,0.05667634,2649.0,2648.8,5.25]
[1739148793049,0.05667634,2649.0,2648.8,9.02517]
[1739148793204,3.77472,2649.2,2648.8,9.02517]
[1739148793403,0.05667634,2649.1,2648.8,9.02517]
[1739148794103,0.05667634,2649.1,2649.0,0.7877]
[1739148794434,3.77451,2649.4,2649.0,0.7877]
[1739148794731,0.05654792,2649.3,2648.9,3.77513]
[1739148795103,0.05654792,2649.3,2648.9,3.77507]
[1739148796856,0.05654792,2649.3,2649.0,3.77497]
[1739148797153,0.05654792,2649.3,2648.9,3.77512]
[1739148797522,0.05654792,2649.3,2648.8,9.80236]
[1739148797724,3.83120792,2649.3,2648.8,9.80236]
[1739148798840,0.05654792,2649.3,2648.8,6.0272]
[1739148799045,0.05654792,2649.3,2649.2,3.77472]
[1739148799234,4.57492,2649.7,2649.2,4.929392]
[1739148799435,3.83088914,2649.6,2649.2,4.55192]
[1739148799738,0.05671914,2649.6,2649.2,4.55192]
[1739148800235,0.05671914,2649.6,2649.3,3.77449]
[1739148800434,7.54795,2649.8,2649.3,9.02449]
[1739148800643,0.05671914,2649.7,2649.3,9.02449]
[1739148800847,7.54796,2649.8,2649.3,9.02449]
[1739148801142,0.05671914,2649.7,2649.3,9.02449]
[1739148801571,3.77402,2649.7,2649.3,9.02449]
[1739148801773,0.05671914,2649.6,2649.3,9.02449]
[1739148802073,0.05671914,2649.6,2649.3,5.25]
[1739148802273,4.55583,2649.4,2649.3,5.25]
[1739148802473,4.61254914,2649.4,2649.3,5.25]
[1739148803681,0.83811914,2649.4,2649.3,5.25]
[1739148804550,0.05671914,2649.4,2649.3,5.25]
[1739148806186,3.77443,2649.5,2649.3,5.25]
[1739148806411,3.82140703,2649.6,2649.3,5.25]
[1739148806561,3.83112776,2649.4,2649.3,5.25]
[1739148806760,3.77443,2649.4,2649.3,5.25]
[1739148806988,0.0567049,2649.4,2649.3,5.25]
[1739148808166,3.8311349,2649.4,2649.3,5.25]
[1739148809197,4.59166439,2649.4,2649.3,5.25]
[1739148809497,5.37306439,2649.4,2649.3,5.25]
[1739148810295,8.37306439,2649.4,2649.3,5.25]
[1739148810905,3.0,2649.3,2648.6,9.02556]
[1739148811113,3.77493,2649.1,2648.6,9.02547]
[1739148811412,3.8221191,2649.1,2648.6,9.02547]
[1739148811713,3.8316607,2649.0,2648.6,9.02547]
[1739148812600,0.0566407,2649.0,2648.6,9.02547]
[1739148814181,0.0566407,2649.0,2648.7,3.77537]
[1739148814583,0.0566407,2649.0,2648.9,3.77515]
[1739148814926,3.77459,2649.3,2648.9,4.228425]
[1739148815214,0.7814,2649.4,2649.0,0.378]
[1739148815405,0.7814,2649.4,2648.9,0.453275]
[1739148815580,0.0539796,2649.3,2649.0,3.77494]
[1739148815917,3.8285596,2649.3,2648.9,4.228415]
[1739148816495,0.0539796,2649.3,2648.9,0.453275]
[1739148816699,0.0539796,2649.3,2649.0,3.77499]
[1739148817019,0.0539796,2649.3,2649.1,9.02482]
[1739148817195,0.0539796,2649.3,2649.1,5.25]
[1739148817387,3.7743,2649.5,2649.1,5.25]
[1739148817825,0.0539796,2649.4,2649.1,5.25]
[1739148818113,3.8284296,2649.4,2649.1,5.25]
[1739148819113,0.0539796,2649.4,2649.1,5.25]
[1739148820018,0.0539796,2649.4,2649.2,4.55902]
[1739148820215,0.0539796,2649.4,2649.2,9.80902]
[1739148820412,3.7742,2649.6,2649.2,9.80902]
[1739148820714,3.77433,2649.5,2649.2,6.0344]
[1739148820919,0.0539796,2649.5,2649.2,9.8091]
[1739148821159,0.0539796,2649.5,2649.2,6.0344]
[1739148821854,3.77416,2649.6,2649.2,5.25]
[1739148822058,3.8283396,2649.5,2649.2,5.25]
[1739148822271,0.0539796,2649.5,2649.2,5.25]
[1739148822481,3.8282896,2649.5,2649.2,5.25]
[1739148822933,3.77458,2649.3,2649.2,5.25]
[1739148823270,3.82880243,2649.3,2649.2,5.25]
[1739148824063,6.82880243,2649.3,2649.2,5.25]
[1739148825745,6.82880243,2649.3,2648.7,3.7754]
[1739148825964,3.77495,2649.1,2648.7,3.7754]
[1739148826451,0.05422243,2649.0,2648.6,9.02555]
[1739148829353,3.82924243,2649.0,2648.6,9.02555]
[1739148830371,0.05422243,2649.0,2648.7,3.77541]
[1739148830573,0.05422243,2649.0,2648.6,9.02551]
[1739148831277,3.82923243,2649.0,2648.6,9.02551]
[1739148831674,0.05422243,2649.0,2648.6,9.02551]
[1739148834049,0.05422243,2649.0,2648.6,9.02549]
[1739148835577,0.05422243,2649.0,2648.6,5.25]
[1739148835745,0.05422243,2649.0,2648.7,3.77536]
[1739148836488,0.05422243,2649.0,2648.6,12.80096]
[1739148836788,0.05422243,2649.0,2648.6,9.02546]
[1739148836969,0.05422243,2649.0,2648.7,3.77541]
[1739148837887,3.82931243,2649.0,2648.6,9.02546]
[1739148838687,0.05422243,2649.0,2648.6,9.02546]
[1739148838849,0.05422243,2649.0,2648.7,3.77532]
[1739148839450,0.05422243,2649.0,2648.6,5.25]
[1739148839668,0.05422243,2649.0,2648.6,9.02555]
[1739148839883,3.82926243,2649.0,2648.6,9.02555]
[1739148840685,0.05422243,2649.0,2648.6,9.02555]
[1739148840996,0.05422243,2649.0,2648.7,3.77537]
[1739148841156,0.05422243,2649.0,2648.6,5.25]
[1739148841157,3.82927243,2649.0,2648.6,9.02555]
[1739148841790,0.05422243,2649.0,2648.6,9.02548]
[1739148841951,0.05422243,2649.0,2648.7,3.77542]
[1739148842157,0.05422243,2649.0,2648.6,5.25]
[1739148842357,0.05422243,2649.0,2648.7,3.77534]
[1739148842591,0.05422243,2649.0,2648.8,3.77523]
[1739148843254,0.05422243,2649.0,2648.9,3.77515]
[1739148843460,0.7687,2649.4,2648.9,4.53215]
[1739148843668,0.05236323,2649.3,2649.0,3.77498]
[1739148844403,0.05236323,2649.3,2649.2,3.77472]
[1739148844703,0.7687,2649.7,2649.3,3.77447]
[1739148844877,0.05242042,2649.6,2649.3,3.77447]
[1739148845976,3.77438,2649.5,2649.2,5.25]
[1739148846305,3.77458,2649.3,2649.2,5.25]
[1739148846609,4.5916435,2649.3,2649.2,5.25]
[1739148846796,5.72825385,2649.3,2649.2,5.25]
[1739148848496,3.77496,2649.1,2648.6,3.77557]
[1739148849009,0.05241327,2649.0,2648.6,3.77557]
[1739148850275,3.77552,2648.7,2648.3,5.25]
[1739148850482,3.7758,2648.5,2648.1,8.86]
[1739148850781,3.77603,2648.3,2648.0,8.86]
[1739148850977,0.7643,2648.2,2648.0,8.86]
[1739148851485,0.0519914,2648.1,2648.0,8.86]
[1739148855401,0.0519914,2648.1,2648.0,5.25]
[1739148856103,3.87548406,2648.1,2648.0,5.25]
[1739148856418,4.28752654,2648.1,2648.0,5.25]
[1739148858211,3.77667,2647.9,2647.5,5.25]
[1739148858418,0.7643,2647.8,2647.5,5.25]
[1739148858822,0.05079689,2647.7,2647.5,5.25]
[1739148859599,3.82766689,2647.7,2647.5,5.25]
[1739148859800,0.05079689,2647.7,2647.5,5.25]
[1739148860714,3.0,2648.0,2647.6,3.777]
[1739148860925,0.05065375,2647.9,2647.6,3.777]
[1739148861133,0.05065375,2647.9,2647.5,9.82394]
[1739148861523,3.82722375,2647.9,2647.5,9.02714]
[1739148861897,3.82722375,2647.9,2647.5,5.25]
[1739148861898,0.05065375,2647.9,2647.5,5.25]
[1739148862097,4.54123,2647.7,2647.5,5.25]
[1739148862497,0.05073248,2647.6,2647.5,5.25]
[1739148864135,3.82773248,2647.6,2647.5,5.25]
[1739148864532,0.05073248,2647.6,2647.5,5.25]
[1739148865304,3.82773248,2647.6,2647.5,5.25]
[1739148865504,0.05073248,2647.6,2647.5,5.25]
[1739148865701,0.05073248,2647.6,2647.5,9.82394]
[1739148865967,4.54052,2648.2,2647.5,9.82394]
[1739148866176,3.7764,2648.1,2647.6,3.77694]
[1739148866373,3.82648844,2648.1,2647.6,3.77694]
[1739148866671,3.82648844,2648.1,2647.7,3.77684]
[1739148866820,0.05008844,2648.1,2647.5,6.0468]
[1739148867020,3.82649844,2648.1,2647.6,3.777]
[1739148867449,0.05008844,2648.1,2647.5,6.0468]
[1739148867649,0.7643,2648.9,2648.2,4.57291]
[1739148867858,2.56950234,2648.6,2647.8,8.86]
[1739148868028,0.7643,2648.2,2647.7,5.25]
[1739148868337,3.77636,2648.1,2647.7,5.25]
[1739148868745,7.55272,2648.1,2647.7,5.25]
[1739148869159,3.77636,2648.1,2647.7,5.25]
[1739148869535,0.7643,2648.4,2647.9,3.77647]
[1739148869735,4.54018,2648.4,2647.9,3.77657]
[1739148870656,6.77583,2648.5,2648.0,3.77632]
[1739148870825,3.77583,2648.5,2648.0,3.77632]
[1739148871159,4.5399,2648.6,2647.9,3.77657]
[1739148871374,3.77573,2648.5,2648.0,3.77636]
[1739148871658,3.77607,2648.3,2647.8,4.57349]
[1739148873356,3.77607,2648.3,2647.8,9.82349]
[1739148873595,3.77615,2648.2,2647.8,9.02669]
[1739148873755,4.54045,2648.2,2647.8,9.02669]